fUST/lending_fUST_20240901
["ID","MTS","AMOUNT","RATE_DAILY","PERIOD"]
[336829167,1725196269241,-506.4085577,0.00026027,2]
[336829168,1725196269251,-500.0,0.00026027,2]
[336829169,1725196269259,-500.0,0.00026027,2]
[336829170,1725196269268,-500.0,0.00026027,2]
[336829171,1725196269278,-566.13,0.00026027,2]
[336829172,1725196269287,-500.0,0.00026027,2]
[336829173,1725196269296,-551.14,0.00026027,2]
[336829174,1725196269306,-500.0,0.00026027,2]
[336829175,1725196269316,-520.52,0.00026027,2]
[336829176,1725196269325,-1054.59,0.00026027,2]
[336829177,1725196269334,-1773.9,0.00026027,2]
[336829178,1725196269347,-500.0,0.00026027,2]
[336829179,1725196269357,-500.0,0.00026027,2]
[336829180,1725196269368,-500.0,0.00026027,2]
[336829181,1725196269377,-4376.36,0.00026027,2]
[336829182,1725196269386,-374.61133668,0.00026027,2]
[336829183,1725196269395,-500.0,0.00026027,2]
[336829184,1725196269405,-500.0,0.00026027,2]
[336829185,1725196269414,-1606.08,0.00026027,2]
[336829186,1725196269424,-630.21,0.00026027,2]
[336829187,1725196269433,-12939.04,0.00026027,2]
[336829188,1725196269442,-417.32387967,0.00026027,2]
[336829189,1725196269452,-500.0,0.00026027,2]
[336829190,1725196269461,-500.0,0.00026027,2]
[336829191,1725196269470,-820.59,0.00026027,2]
[336829192,1725196269480,-706.82,0.00026027,2]
[336829193,1725196269489,-500.0,0.00026027,2]
[336829194,1725196269498,-500.0,0.00026027,2]
[336829195,1725196269508,-841.46,0.00026027,2]
[336829196,1725196269518,-610.6,0.00026027,2]
[336829197,1725196269527,-500.0,0.00026027,2]
[336829198,1725196269536,-1049.71,0.00026027,2]
[336829199,1725196269547,-3759.25,0.00026027,2]
[336829200,1725196269558,-733.39,0.00026027,2]
[336829201,1725196269570,-524.18,0.00026027,2]
[336829202,1725196269580,-510.07,0.00026027,2]
[336829203,1725196269591,-500.0,0.00026027,2]
[336829204,1725196269601,-500.0,0.00026027,2]
[336829205,1725196269611,-430.34723535,0.00026027,2]
[336829206,1725196269621,-161.87,0.00026027,2]
[336829207,1725196269631,-2098.62,0.00026027,2]
[336829208,1725196269641,-509.33887022,0.00026027,2]
[336829209,1725196269651,-1048.88,0.00026027,2]
[336829210,1725196269663,-500.0,0.00026027,2]
[336829211,1725196269672,-521.79,0.00026027,2]
[336829212,1725196269682,-500.0,0.00026027,2]
[336829213,1725196269692,-500.0,0.00026027,2]
[336829214,1725196269700,-500.0,0.00026027,2]
[336829215,1725196269712,-500.0,0.00026027,2]
[336829216,1725196269723,-500.0,0.00026027,2]
[336829217,1725196269732,-1171.86,0.00026027,2]
[336829218,1725196269741,-500.0,0.00026027,2]
[336829219,1725196269750,-500.0,0.00026027,2]
[336829220,1725196269759,-2880.35,0.00026027,2]
[336829221,1725196269768,-1941.64,0.00026027,2]
[336829222,1725196269786,-500.0,0.00026027,2]
[336829223,1725196269806,-514.99927391,0.00026027,2]
[336829224,1725196269826,-500.0,0.00026063,2]
[336829225,1725196269845,-500.0,0.00026063,2]
[336829226,1725196269866,-504.85190653,0.00026069,2]
[336829227,1725196269884,-500.0,0.00026069,2]
[336829228,1725196269903,-536.3871627,0.00026069,2]
[336829229,1725196269919,-503.92317938,0.00026069,2]
[336829230,1725196269942,-502.33822911,0.00026069,2]
[336829231,1725196269963,-500.0,0.00026075,2]
[336829232,1725196269976,-332.55119175,0.00026075,2]
[336829233,1725196269993,-500.0,0.00026075,2]
[336829234,1725196270011,-500.0,0.00026075,2]
[336829235,1725196270027,-500.0,0.00026075,2]
[336829236,1725196270040,-500.0,0.00026075,2]
[336829237,1725196270054,-500.0,0.00026075,2]
[336829238,1725196270069,-500.0,0.00026075,2]
[336829239,1725196270085,-500.0,0.00026075,2]
[336829240,1725196270100,-500.0,0.00026075,2]
[336829241,1725196270114,-500.0,0.00026075,2]
[336829242,1725196270129,-500.0,0.00026075,2]
[336829243,1725196270143,-500.0,0.00026075,2]
[336829244,1725196270158,-500.0,0.00026075,2]
[336829245,1725196270173,-1500.0,0.00026119,2]
[336829246,1725196270187,-500.0,0.00026242,2]
[336829247,1725196270202,-500.0,0.00026242,2]
[336829248,1725196270217,-502.63088586,0.00026242,2]
[336829249,1725196270231,-500.0,0.00026301,2]
[336829250,1725196270247,-503.93,0.00026301,2]
[336829251,1725196270261,-500.0,0.00026301,2]
[336829252,1725196270277,-500.0,0.00026301,2]
[336829253,1725196270293,-218.47149251,0.00026301,2]
[336829254,1725196270308,-513.98,0.00026301,2]
[336829255,1725196270323,-500.0,0.00026301,2]
[336829256,1725196270338,-500.0,0.00026301,2]
[336829257,1725196270354,-500.0,0.00026301,2]
[336829258,1725196270370,-500.0,0.00026301,2]
[336829259,1725196270387,-500.0,0.00026301,2]
[336829260,1725196270398,-500.0,0.00026301,2]
[336829261,1725196270407,-500.0,0.00026301,2]
[336829262,1725196270419,-500.0,0.00026301,2]
[336829263,1725196270430,-766.67,0.00026301,2]
[336829264,1725196270441,-500.0,0.00026301,2]
[336829265,1725196270451,-500.0,0.00026301,2]
[336829266,1725196270461,-753.59,0.00026301,2]
[336829267,1725196270471,-500.0,0.00026301,2]
[336829268,1725196270480,-500.0,0.00026301,2]
[336829269,1725196270489,-500.0,0.00026301,2]
[336829270,1725196270498,-348.78386207,0.00026301,2]
[336829271,1725196270508,-500.0,0.00026301,2]
[336829272,1725196270518,-547.0,0.00026301,2]
[336829273,1725196270528,-500.0,0.00026301,2]
[336829274,1725196270539,-500.0,0.00026301,2]
[336829275,1725196270550,-500.0,0.00026301,2]
[336829276,1725196270561,-617.11,0.00026301,2]
[336829277,1725196270571,-675.89,0.00026301,2]
[336829278,1725196270581,-500.0,0.00026301,2]
[336829279,1725196270591,-500.0,0.00026301,2]
[336829280,1725196270601,-500.0,0.00026301,2]
[336829281,1725196270612,-500.0,0.00026301,2]
[336829282,1725196270623,-204.4196225,0.00026301,2]
[336829283,1725196270632,-500.0,0.00026301,2]
[336829284,1725196270644,-500.0,0.00026301,2]
[336829285,1725196270655,-500.0,0.00026301,2]
[336829286,1725196270666,-500.0,0.00026301,2]
[336829287,1725196270675,-500.0,0.00026301,2]
[336829288,1725196270684,-500.0,0.00026301,2]
[336829289,1725196270952,-500.0,0.00026301,2]
[336829290,1725196270969,-500.0,0.00026301,2]
[336829291,1725196270984,-500.0,0.00026301,2]
[336829292,1725196270993,-500.0,0.00026301,2]
[336829293,1725196271003,-525.74,0.00026301,2]
[336829294,1725196271012,-1039.17,0.00026301,2]
[336829295,1725196271021,-500.0,0.00026301,2]
[336829296,1725196271031,-774.7,0.00026301,2]
[336829297,1725196271039,-500.0,0.00026301,2]
[336829298,1725196271049,-500.0,0.00026301,2]
[336829299,1725196271058,-563.86,0.00026301,2]
[336829300,1725196271068,-614.55,0.00026301,2]
[336829301,1725196271077,-1273.12,0.00026301,2]
[336829302,1725196271087,-2472.41,0.00026301,2]
[336829303,1725196271096,-500.0,0.00026301,2]
[336829304,1725196271117,-500.0,0.00026301,2]
[336829305,1725196271127,-500.0,0.00026301,2]
[336829306,1725196271136,-500.0,0.00026301,2]
[336829307,1725196271145,-504.84516059,0.00026301,2]
[336829308,1725196271154,-682.55,0.00026301,2]
[336829309,1725196271162,-802.89,0.00026301,2]
[336829310,1725196271171,-500.0,0.00026301,2]
[336829311,1725196271181,-500.0,0.00026301,2]
[336829312,1725196271190,-500.0,0.00026301,2]
[336829313,1725196271199,-500.0,0.00026301,2]
[336829314,1725196271208,-500.0,0.00026301,2]
[336829315,1725196271218,-500.0,0.00026301,2]
[336829316,1725196271228,-500.0,0.00026301,2]
[336829317,1725196271238,-500.0,0.00026301,2]
[336829318,1725196271248,-504.08787951,0.00026301,2]
[336829319,1725196271258,-673.3,0.00026301,2]
[336829320,1725196271267,-500.0,0.00026301,2]
[336829321,1725196271277,-1316.68,0.00026301,2]
[336829322,1725196271287,-500.0,0.00026301,2]
[336829323,1725196271297,-500.0,0.00026301,2]
[336829324,1725196271306,-500.0,0.00026301,2]
[336829325,1725196271316,-295.10379098,0.00026301,2]
[336829326,1725196271326,-622.17,0.00026301,2]
[336829327,1725196271335,-682.3,0.00026301,2]
[336829328,1725196271345,-1303.98,0.00026301,2]
[336829329,1725196271356,-620.86,0.00026301,2]
[336829330,1725196271366,-1453.18,0.00026301,2]
[336829331,1725196271376,-646.03622276,0.00026301,2]
[336829332,1725196271387,-500.0,0.00026301,2]
[336829333,1725196271397,-729.76,0.00026301,2]
[336829334,1725196271406,-1639.07,0.00026301,2]
[336829335,1725196271416,-500.0,0.00026301,2]
[336829336,1725196271426,-500.0,0.00026301,2]
[336829337,1725196271435,-500.0,0.00026301,2]
[336829338,1725196271445,-1274.99,0.00026301,2]
[336829339,1725196271455,-500.0,0.00026301,2]
[336829340,1725196271464,-564.33,0.00026301,2]
[336829341,1725196271474,-500.0,0.00026301,2]
[336829342,1725196271484,-826.88,0.00026301,2]
[336829343,1725196271494,-792.27,0.00026301,2]
[336829344,1725196271504,-500.0,0.00026301,2]
[336829345,1725196271514,-525.9372745,0.00026301,2]
[336829346,1725196271524,-14051.44,0.00026301,2]
[336829347,1725196271534,-795.97,0.00026301,2]
[336829348,1725196271544,-497.12075668,0.00026301,2]
[336829349,1725196271554,-613.39,0.00026301,2]
[336829350,1725196271563,-500.0,0.00026301,2]
[336829351,1725196271573,-1433.45,0.00026301,2]
[336829352,1725196271582,-500.0,0.00026301,2]
[336829353,1725196271592,-500.0,0.00026301,2]
[336829354,1725196271604,-789.77,0.00026301,2]
[336829355,1725196271613,-500.0,0.00026301,2]
[336829356,1725196271623,-500.0,0.00026301,2]
[336829357,1725196271632,-500.0,0.00026301,2]
[336829358,1725196271643,-542.0,0.00026301,2]
[336829359,1725196271652,-526.68886079,0.00026301,2]
[336829360,1725196271663,-556.15,0.00026301,2]
[336829361,1725196271674,-500.0,0.00026301,2]
[336829362,1725196271684,-3366.91,0.00026301,2]
[336829363,1725196271693,-500.0,0.00026301,2]
[336829364,1725196271703,-886.17,0.00026301,2]
[336829365,1725196271716,-1362.38,0.00026301,2]
[336829366,1725196271725,-904.8,0.00026301,2]
[336829367,1725196271735,-824.7,0.00026301,2]
[336829368,1725196271745,-500.0,0.00026301,2]
[336829369,1725196271755,-500.0,0.00026301,2]
[336829370,1725196271764,-1054.79,0.00026301,2]
[336829371,1725196271774,-500.0,0.00026301,2]
[336829372,1725196271784,-2829.69,0.00026301,2]
[336829373,1725196271793,-1995.46,0.00026301,2]
[336829374,1725196271802,-3089.2,0.00026301,2]
[336829375,1725196271811,-1419.92,0.00026301,2]
[336829376,1725196271823,-500.0,0.00026301,2]
[336829377,1725196271832,-500.0,0.00026301,2]
[336829378,1725196271843,-662.37,0.00026301,2]
[336829379,1725196271854,-500.0,0.00026301,2]
[336829380,1725196271864,-500.0,0.00026301,2]
[336829381,1725196271878,-500.0,0.00026301,2]
[336829382,1725196271888,-706.5,0.00026301,2]
[336829383,1725196271898,-500.0,0.00026301,2]
[336829384,1725196271910,-500.0,0.00026301,2]
[336829385,1725196271920,-566.13,0.00026301,2]
[336829386,1725196271929,-500.0,0.00026301,2]
[336829387,1725196271939,-551.14,0.00026301,2]
[336829388,1725196271948,-500.0,0.00026301,2]
[336829389,1725196271958,-520.52,0.00026301,2]
[336829390,1725196271967,-1054.59,0.00026301,2]
[336829391,1725196271978,-1773.9,0.00026301,2]
[336829392,1725196271988,-500.0,0.00026301,2]
[336829393,1725196271998,-500.0,0.00026301,2]
[336829394,1725196272007,-500.0,0.00026301,2]
[336829395,1725196272017,-4376.36,0.00026301,2]
[336829396,1725196272026,-500.0,0.00026301,2]
[336829397,1725196272036,-500.0,0.00026301,2]
[336829398,1725196272045,-1606.08,0.00026301,2]
[336829399,1725196272055,-630.21,0.00026301,2]
[336829400,1725196272064,-12939.04,0.00026301,2]
[336829401,1725196272074,-500.0,0.00026301,2]
[336829402,1725196272084,-500.0,0.00026301,2]
[336829403,1725196272093,-820.59,0.00026301,2]
[336829404,1725196272106,-706.82,0.00026301,2]
[336829405,1725196272116,-500.0,0.00026301,2]
[336829406,1725196272126,-841.46,0.00026301,2]
[336829407,1725196272136,-610.6,0.00026301,2]
[336829408,1725196272148,-500.0,0.00026301,2]
[336829409,1725196272158,-1049.71,0.00026301,2]
[336829410,1725196272168,-733.39,0.00026301,2]
[336829411,1725196272177,-3759.25,0.00026301,2]
[336829412,1725196272187,-524.18,0.00026301,2]
[336829413,1725196272197,-510.07,0.00026301,2]
[336829414,1725196272207,-500.0,0.00026301,2]
[336829415,1725196272217,-2098.62,0.00026301,2]
[336829416,1725196272227,-1048.88,0.00026301,2]
[336829417,1725196272238,-500.0,0.00026301,2]
[336829418,1725196272248,-521.79,0.00026301,2]
[336829419,1725196272258,-500.0,0.00026301,2]
[336829420,1725196272268,-500.0,0.00026301,2]
[336829421,1725196272277,-500.0,0.00026301,2]
[336829422,1725196272287,-618.25487349,0.00026301,2]
[336829423,1725196272297,-500.0,0.00026301,2]
[336829424,1725196272307,-1171.86,0.00026301,2]
[336829425,1725196272316,-500.0,0.00026301,2]
[336829426,1725196272326,-500.0,0.00026301,2]
[336829427,1725196272337,-2880.35,0.00026301,2]
[336829428,1725196272346,-1941.64,0.00026301,2]
[336829429,1725196272360,-500.0,0.00026337,2]
[336829430,1725196272369,-500.0,0.00026337,2]
[336829431,1725196272378,-500.0,0.00026343,2]
[336829432,1725196272388,-500.0,0.00026349,2]
[336829433,1725196272398,-500.0,0.00026349,2]
[336829434,1725196272407,-500.0,0.00026349,2]
[336829435,1725196272416,-500.0,0.00026349,2]
[336829436,1725196272427,-500.0,0.00026349,2]
[336829437,1725196272436,-500.0,0.00026349,2]
[336829438,1725196272446,-500.0,0.00026349,2]
[336829439,1725196272457,-500.0,0.00026349,2]
[336829440,1725196272467,-500.0,0.00026516,2]
[336829441,1725196272477,-500.0,0.00026516,2]
[336829442,1725196272486,-500.0,0.00026575,2]
[336829443,1725196272495,-465.44507811,0.00026575,2]
[336829444,1725196272505,-500.0,0.00026575,2]
[336829445,1725196272515,-500.0,0.00026575,2]
[336829446,1725196272525,-500.0,0.00026575,2]
[336829447,1725196272535,-500.0,0.00026575,2]
[336829448,1725196272545,-500.0,0.00026575,2]
[336829449,1725196272555,-500.0,0.00026575,2]
[336829450,1725196272564,-500.0,0.00026575,2]
[336829451,1725196272574,-500.0,0.00026575,2]
[336829452,1725196272583,-500.0,0.00026575,2]
[336829453,1725196272592,-766.67,0.00026575,2]
[336829454,1725196272603,-500.0,0.00026575,2]
[336829455,1725196272613,-500.0,0.00026575,2]
[336829456,1725196272622,-753.59,0.00026575,2]
[336829457,1725196272632,-500.0,0.00026575,2]
[336829458,1725196272641,-500.0,0.00026575,2]
[336829459,1725196272652,-500.0,0.00026575,2]
[336829460,1725196272662,-500.0,0.00026575,2]
[336829461,1725196272671,-547.0,0.00026575,2]
[336829462,1725196272680,-500.0,0.00026575,2]
[336829463,1725196272689,-500.0,0.00026575,2]
[336829464,1725196272699,-500.0,0.00026575,2]
[336829465,1725196272709,-617.11,0.00026575,2]
[336829466,1725196272720,-675.89,0.00026575,2]
[336829467,1725196272729,-500.0,0.00026575,2]
[336829468,1725196272739,-500.0,0.00026575,2]
[336829469,1725196272748,-500.0,0.00026575,2]
[336829470,1725196272759,-500.0,0.00026575,2]
[336829471,1725196272768,-513.91093587,0.00026575,2]
[336829472,1725196272777,-500.0,0.00026575,2]
[336829473,1725196272786,-500.0,0.00026575,2]
[336829474,1725196272798,-500.0,0.00026575,2]
[336829475,1725196272808,-500.0,0.00026575,2]
[336829476,1725196272818,-500.0,0.00026575,2]
[336829477,1725196272827,-500.0,0.00026575,2]
[336829478,1725196272836,-500.0,0.00026575,2]
[336829479,1725196272846,-500.0,0.00026575,2]
[336829480,1725196272857,-500.0,0.00026575,2]
[336829481,1725196272866,-525.74,0.00026575,2]
[336829482,1725196272876,-1039.17,0.00026575,2]
[336829483,1725196272886,-500.0,0.00026575,2]
[336829484,1725196272895,-774.7,0.00026575,2]
[336829485,1725196272905,-370.25705107,0.00026575,2]
[336829486,1725196272915,-500.0,0.00026575,2]
[336829487,1725196272925,-563.86,0.00026575,2]
[336829488,1725196272935,-614.55,0.00026575,2]
[336829489,1725196272944,-1273.12,0.00026575,2]
[336829490,1725196272953,-2472.41,0.00026575,2]
[336829491,1725196272963,-500.0,0.00026575,2]
[336829492,1725196272972,-500.0,0.00026575,2]
[336829493,1725196272983,-500.0,0.00026575,2]
[336829494,1725196272992,-628.14978538,0.00026575,2]
[336829495,1725196273001,-682.55,0.00026575,2]
[336829496,1725196273011,-802.89,0.00026575,2]
[336829497,1725196273020,-500.0,0.00026575,2]
[336829498,1725196273030,-500.0,0.00026575,2]
[336829499,1725196273040,-500.0,0.00026575,2]
[336829500,1725196273050,-500.0,0.00026575,2]
[336829501,1725196273060,-500.0,0.00026575,2]
[336829502,1725196273070,-500.0,0.00026575,2]
[336829503,1725196273081,-673.3,0.00026575,2]
[336829504,1725196273091,-500.0,0.00026575,2]
[336829505,1725196273101,-1316.68,0.00026575,2]
[336829506,1725196273111,-500.0,0.00026575,2]
[336829507,1725196273122,-500.0,0.00026575,2]
[336829508,1725196273132,-500.0,0.00026575,2]
[336829509,1725196273142,-682.3,0.00026575,2]
[336829510,1725196273152,-622.17,0.00026575,2]
[336829511,1725196273162,-1303.98,0.00026575,2]
[336829512,1725196273172,-620.86,0.00026575,2]
[336829513,1725196273181,-1453.18,0.00026575,2]
[336829514,1725196273191,-500.0,0.00026575,2]
[336829515,1725196273200,-729.76,0.00026575,2]
[336829516,1725196273209,-1639.07,0.00026575,2]
[336829517,1725196273219,-500.0,0.00026575,2]
[336829518,1725196273228,-500.0,0.00026575,2]
[336829519,1725196273238,-500.0,0.00026575,2]
[336829520,1725196273248,-1274.99,0.00026575,2]
[336829521,1725196273259,-564.33,0.00026575,2]
[336829522,1725196273269,-500.0,0.00026575,2]
[336829523,1725196273280,-826.88,0.00026575,2]
[336829524,1725196273291,-792.27,0.00026575,2]
[336829525,1725196273300,-500.0,0.00026575,2]
[336829526,1725196273311,-14051.44,0.00026575,2]
[336829527,1725196273320,-795.97,0.00026575,2]
[336829528,1725196273330,-613.39,0.00026575,2]
[336829529,1725196273340,-500.0,0.00026575,2]
[336829530,1725196273350,-1433.45,0.00026575,2]
[336829531,1725196273360,-500.0,0.00026575,2]
[336829532,1725196273370,-500.0,0.00026575,2]
[336829533,1725196273380,-789.77,0.00026575,2]
[336829534,1725196273389,-500.0,0.00026575,2]
[336829535,1725196273398,-500.0,0.00026575,2]
[336829536,1725196273408,-500.0,0.00026575,2]
[336829537,1725196273418,-542.0,0.00026575,2]
[336829538,1725196273427,-556.15,0.00026575,2]
[336829539,1725196273437,-3366.91,0.00026575,2]
[336829540,1725196273447,-886.17,0.00026575,2]
[336829541,1725196273457,-1362.38,0.00026575,2]
[336829542,1725196273466,-904.8,0.00026575,2]
[336829543,1725196273476,-824.7,0.00026575,2]
[336829544,1725196273485,-500.0,0.00026575,2]
[336829545,1725196273495,-500.0,0.00026575,2]
[336829546,1725196273504,-1054.79,0.00026575,2]
[336829547,1725196273513,-500.0,0.00026575,2]
[336829548,1725196273523,-2829.69,0.00026575,2]
[336829549,1725196273533,-1995.46,0.00026575,2]
[336829550,1725196273542,-3089.2,0.00026575,2]
[336829551,1725196273551,-1419.92,0.00026575,2]
[336829552,1725196273561,-500.0,0.00026575,2]
[336829553,1725196273570,-500.0,0.00026575,2]
[336829554,1725196273580,-662.37,0.00026575,2]
[336829555,1725196273590,-500.0,0.00026575,2]
[336829556,1725196273600,-500.0,0.00026575,2]
[336829557,1725196273610,-500.0,0.00026575,2]
[336829558,1725196273619,-706.5,0.00026575,2]
[336829559,1725196273628,-500.0,0.00026575,2]
[336829560,1725196273638,-500.0,0.00026575,2]
[336829561,1725196273647,-566.13,0.00026575,2]
[336829562,1725196273657,-500.0,0.00026575,2]
[336829563,1725196273667,-551.14,0.00026575,2]
[336829564,1725196273676,-500.0,0.00026575,2]
[336829565,1725196273686,-520.52,0.00026575,2]
[336829566,1725196273696,-1054.59,0.00026575,2]
[336829567,1725196273706,-1773.9,0.00026575,2]
[336829568,1725196273720,-500.0,0.00026575,2]
[336829569,1725196273729,-500.0,0.00026575,2]
[336829570,1725196273739,-500.0,0.00026575,2]
[336829571,1725196273750,-4376.36,0.00026575,2]
[336829572,1725196273760,-500.0,0.00026575,2]
[336829573,1725196273769,-500.0,0.00026575,2]
[336829574,1725196273778,-1606.08,0.00026575,2]
[336829575,1725196273788,-630.21,0.00026575,2]
[336829576,1725196273798,-12939.04,0.00026575,2]
[336829577,1725196273808,-500.0,0.00026575,2]
[336829578,1725196273818,-500.0,0.00026575,2]
[336829579,1725196273827,-820.59,0.00026575,2]
[336829580,1725196273837,-706.82,0.00026575,2]
[336829581,1725196273846,-500.0,0.00026575,2]
[336829582,1725196273856,-841.46,0.00026575,2]
[336829583,1725196273866,-610.6,0.00026575,2]
[336829584,1725196273876,-500.0,0.00026575,2]
[336829585,1725196273885,-1049.71,0.00026575,2]
[336829586,1725196273895,-733.39,0.00026575,2]
[336829587,1725196273905,-3759.25,0.00026575,2]
[336829588,1725196273914,-524.18,0.00026575,2]
[336829589,1725196273924,-510.07,0.00026575,2]
[336829590,1725196273934,-500.0,0.00026575,2]
[336829591,1725196273945,-2098.62,0.00026575,2]
[336829592,1725196273957,-1048.88,0.00026575,2]
[336829593,1725196273967,-500.0,0.00026575,2]
[336829594,1725196273977,-521.79,0.00026575,2]
[336829595,1725196273986,-500.0,0.00026575,2]
[336829596,1725196273996,-500.0,0.00026575,2]
[336829597,1725196274006,-500.0,0.00026575,2]
[336829598,1725196274016,-1171.86,0.00026575,2]
[336829599,1725196274026,-500.0,0.00026575,2]
[336829600,1725196274035,-500.0,0.00026575,2]
[336829601,1725196274046,-2880.35,0.00026575,2]
[336829602,1725196274056,-1941.64,0.00026575,2]
[336829603,1725196274066,-500.0,0.00026611,2]
[336829604,1725196274075,-500.0,0.00026611,2]
[336829605,1725196274085,-540.93524496,0.00026617,2]
[336829606,1725196274096,-500.0,0.00026623,2]
[336829607,1725196274107,-500.0,0.00026623,2]
[336829608,1725196274116,-500.0,0.00026623,2]
[336829609,1725196274126,-500.0,0.00026623,2]
[336829610,1725196274136,-500.0,0.00026623,2]
[336829611,1725196274145,-500.0,0.00026623,2]
[336829612,1725196274155,-500.0,0.00026623,2]
[336829613,1725196274164,-638.573695,0.00026849,2]
[336829614,1725196274174,-500.0,0.00026849,2]
[336829615,1725196274184,-500.0,0.00026849,2]
[336829616,1725196274196,-500.0,0.00026849,2]
[336829617,1725196274207,-500.0,0.00026849,2]
[336829618,1725196274216,-500.0,0.00026849,2]
[336829619,1725196274226,-500.0,0.00026849,2]
[336829620,1725196274236,-500.0,0.00026849,2]
[336829621,1725196274245,-500.0,0.00026849,2]
[336829622,1725196274255,-500.0,0.00026849,2]
[336829623,1725196274265,-766.67,0.00026849,2]
[336829624,1725196274399,-500.0,0.00026849,2]
[336829625,1725196274409,-500.0,0.00026849,2]
[336829626,1725196274418,-753.59,0.00026849,2]
[336829627,1725196274428,-500.0,0.00026849,2]
[336829628,1725196274437,-500.0,0.00026849,2]
[336829629,1725196274446,-500.0,0.00026849,2]
[336829630,1725196274456,-500.0,0.00026849,2]
[336829631,1725196274466,-547.0,0.00026849,2]
[336829632,1725196274476,-603.41047401,0.00026849,2]
[336829633,1725196274485,-500.0,0.00026849,2]
[336829634,1725196274494,-500.0,0.00026849,2]
[336829635,1725196274503,-617.11,0.00026849,2]
[336829636,1725196274514,-675.89,0.00026849,2]
[336829637,1725196274523,-500.0,0.00026849,2]
[336829638,1725196274533,-500.0,0.00026849,2]
[336829639,1725196274543,-500.0,0.00026849,2]
[336829640,1725196274552,-500.0,0.00026849,2]
[336829641,1725196274562,-500.0,0.00026849,2]
[336829642,1725196274571,-500.0,0.00026849,2]
[336829643,1725196274581,-500.0,0.00026849,2]
[336829644,1725196274590,-500.0,0.00026849,2]
[336829645,1725196274600,-500.0,0.00026849,2]
[336829646,1725196274610,-500.0,0.00026849,2]
[336829647,1725196274620,-500.0,0.00026849,2]
[336829648,1725196274629,-525.74,0.00026849,2]
[336829649,1725196274639,-1039.17,0.00026849,2]
[336829650,1725196274648,-500.0,0.00026849,2]
[336829651,1725196274658,-774.7,0.00026849,2]
[336829652,1725196274667,-500.0,0.00026849,2]
[336829653,1725196274677,-563.86,0.00026849,2]
[336829654,1725196274687,-614.55,0.00026849,2]
[336829655,1725196274697,-1273.12,0.00026849,2]
[336829656,1725196274707,-2472.41,0.00026849,2]
[336829657,1725196274720,-500.0,0.00026849,2]
[336829658,1725196274730,-500.0,0.00026849,2]
[336829659,1725196274739,-500.0,0.00026849,2]
[336829660,1725196274749,-682.55,0.00026849,2]
[336829661,1725196274758,-802.89,0.00026849,2]
[336829662,1725196274768,-500.0,0.00026849,2]
[336829663,1725196274778,-500.0,0.00026849,2]
[336829664,1725196274790,-500.0,0.00026849,2]
[336829665,1725196274800,-500.0,0.00026849,2]
[336829666,1725196274811,-500.0,0.00026849,2]